[Event "Titled Tuesday Blitz June 21 Late 2022"]
[White "Goltseva, Ekaterina"]
[Black "Konaplev, Anton"]
[WhiteFideId "24173770"]
[BlackFideId "24165646"]
[WhiteElo "2542"]
[BlackElo "2428"]
[Result "0-1"]
[Round "10"]
[TimeControl "180+1"]
[Date "2022.06.22"]
[WhiteClock "0:00:10"]
[BlackClock "0:00:08"]

1. d4 {[%clk 0:02:18]}  d5 {[%clk 0:02:58]} 2. c4 {[%clk 0:02:18]}  e6 {[%clk 0:02:58]} 3. Nc3 {[%clk 0:02:14]}  Be7 {[%clk 0:02:55]} 4. cxd5 {[%clk 0:02:12]}  exd5 {[%clk 0:02:56]} 5. Bf4 {[%clk 0:02:13]}  c6 {[%clk 0:02:55]} 6. e3 {[%clk 0:01:47]}  Bf5 {[%clk 0:02:55]} 7. g4 {[%clk 0:01:47]}  Be6 {[%clk 0:02:55]} 8. h4 {[%clk 0:01:44]}  Nf6 {[%clk 0:02:52]} 9. f3 {[%clk 0:01:39]}  O-O {[%clk 0:02:34]} 10. Bd3 {[%clk 0:01:39]}  c5 {[%clk 0:02:32]} 11. Nge2 {[%clk 0:01:38]}  Nc6 {[%clk 0:02:32]} 12. h5 {[%clk 0:01:34]}  Nd7 {[%clk 0:02:01]} 13. h6 {[%clk 0:01:28]}  g6 {[%clk 0:01:57]} 14. Qd2 {[%clk 0:01:21]}  Bf6 {[%clk 0:01:45]} 15. Nb5 {[%clk 0:01:17]}  a6 {[%clk 0:01:38]} 16. Nc7 {[%clk 0:01:09]}  cxd4 {[%clk 0:01:23]} 17. exd4 {[%clk 0:01:02]}  Rc8 {[%clk 0:01:21]} 18. Nxe6 {[%clk 0:00:58]}  fxe6 {[%clk 0:01:22]} 19. Be3 {[%clk 0:00:52]}  Qa5 {[%clk 0:01:10]} 20. Qxa5 {[%clk 0:00:48]}  Nxa5 {[%clk 0:01:11]} 21. g5 {[%clk 0:00:44]}  Be7 {[%clk 0:01:04]} 22. Kf2 {[%clk 0:00:34]}  Bd6 {[%clk 0:01:02]} 23. b3 {[%clk 0:00:31]}  Rf7 {[%clk 0:00:59]} 24. f4 {[%clk 0:00:27]}  e5 {[%clk 0:00:55]} 25. dxe5 {[%clk 0:00:24]}  Nxe5 {[%clk 0:00:55]} 26. Rad1 {[%clk 0:00:22]}  Ng4+ {[%clk 0:00:42]} 27. Kf3 {[%clk 0:00:22]}  Nxe3 {[%clk 0:00:43]} 28. Kxe3 {[%clk 0:00:22]}  Nc6 {[%clk 0:00:39]} 29. Bb1 {[%clk 0:00:17]}  Re8+ {[%clk 0:00:38]} 30. Kf3 {[%clk 0:00:16]}  Rfe7 {[%clk 0:00:38]} 31. Rhe1 {[%clk 0:00:11]}  Re3+ {[%clk 0:00:37]} 32. Kf2 {[%clk 0:00:11]}  Bc5 {[%clk 0:00:36]} 33. Kf1 {[%clk 0:00:11]}  Rf3+ {[%clk 0:00:34]} 34. Kg2 {[%clk 0:00:11]}  Rf2+ {[%clk 0:00:34]} 35. Kg3 {[%clk 0:00:11]}  Rfxe2 {[%clk 0:00:34]} 36. Rxe2 {[%clk 0:00:11]}  Rxe2 {[%clk 0:00:34]} 37. Rxd5 {[%clk 0:00:12]}  Bd4 {[%clk 0:00:26]} 38. f5 {[%clk 0:00:10]}  gxf5 {[%clk 0:00:22]} 39. Bxf5 {[%clk 0:00:09]}  Re7 {[%clk 0:00:21]} 40. b4 {[%clk 0:00:03]}  Bb6 {[%clk 0:00:20]} 41. b5 {[%clk 0:00:03]}  axb5 {[%clk 0:00:20]} 42. Rxb5 {[%clk 0:00:04]}  Bc7+ {[%clk 0:00:20]} 43. Kg4 {[%clk 0:00:04]}  Ne5+ {[%clk 0:00:17]} 44. Kh5 {[%clk 0:00:04]}  Bd6 {[%clk 0:00:11]} 45. Rd5 {[%clk 0:00:03]}  Nf7 {[%clk 0:00:11]} 46. g6 {[%clk 0:00:03]}  hxg6+ {[%clk 0:00:11]} 47. Bxg6 {[%clk 0:00:04]}  Re5+ {[%clk 0:00:11]} 48. Rxe5 {[%clk 0:00:04]}  Nxe5 {[%clk 0:00:11]} 49. Be4 {[%clk 0:00:04]}  b6 {[%clk 0:00:11]} 50. h7+ {[%clk 0:00:04]}  Kg7 {[%clk 0:00:11]} 51. Kg5 {[%clk 0:00:04]}  Nf7+ {[%clk 0:00:09]} 52. Kf5 {[%clk 0:00:03]}  Bc5 {[%clk 0:00:05]} 53. Ke6 {[%clk 0:00:03]}  Ng5+ {[%clk 0:00:05]} 54. Kd5 {[%clk 0:00:03]}  Nxe4 {[%clk 0:00:05]} 55. Kxe4 {[%clk 0:00:04]}  Kxh7 {[%clk 0:00:05]} 56. a4 {[%clk 0:00:04]}  Bb4 {[%clk 0:00:05]} 57. Kd5 {[%clk 0:00:04]}  Ba5 {[%clk 0:00:05]} 58. Kc6 {[%clk 0:00:05]}  Kg6 {[%clk 0:00:06]} 59. Kb5 {[%clk 0:00:05]}  Kf5 {[%clk 0:00:06]} 60. Kc4 {[%clk 0:00:05]}  Ke4 {[%clk 0:00:06]} 61. Kb5 {[%clk 0:00:06]}  Kd4 {[%clk 0:00:06]} 62. Ka6 {[%clk 0:00:06]}  Kc4 {[%clk 0:00:06]} 63. Kb7 {[%clk 0:00:06]}  Kb4 {[%clk 0:00:07]} 64. Ka7 {[%clk 0:00:07]}  Kxa4 {[%clk 0:00:08]} 65. Ka6 {[%clk 0:00:08]}  Kb4 {[%clk 0:00:08]} 66. Kb7 {[%clk 0:00:08]}  Kc5 {[%clk 0:00:08]} 67. Ka7 {[%clk 0:00:09]}  Be1 {[%clk 0:00:08]} 68. Ka8 {[%clk 0:00:10]}  b5 {[%clk 0:00:08]} 0-1


[Site "https://www.chess.com"]

[Event "Titled Tuesday Blitz June 21 Late 2022"]
[White "Grischuk, Alexander"]
[Black "Terry, Renato"]
[WhiteFideId "4126025"]
[BlackFideId "3803457"]
[WhiteElo "2762"]
[BlackElo "2577"]
[Result "1/2-1/2"]
[Round "10"]
[TimeControl "180+1"]
[Date "2022.06.21"]
[WhiteClock "0:00:05"]
[BlackClock "0:00:02"]

1. d4 {[%clk 0:03:00]}  e6 {[%clk 0:03:00]} 2. e4 {[%clk 0:03:00]}  d5 {[%clk 0:03:00]} 3. e5 {[%clk 0:02:59]}  c5 {[%clk 0:03:00]} 4. c3 {[%clk 0:03:00]}  Qb6 {[%clk 0:03:00]} 5. Nf3 {[%clk 0:03:00]}  Bd7 {[%clk 0:03:01]} 6. Bd3 {[%clk 0:02:58]}  cxd4 {[%clk 0:03:00]} 7. Nxd4 {[%clk 0:02:58]}  Nc6 {[%clk 0:03:00]} 8. Nxc6 {[%clk 0:02:57]}  Bxc6 {[%clk 0:02:55]} 9. Qe2 {[%clk 0:02:57]}  Ne7 {[%clk 0:02:54]} 10. Nd2 {[%clk 0:02:54]}  a6 {[%clk 0:02:49]} 11. a4 {[%clk 0:02:51]}  Ng6 {[%clk 0:02:37]} 12. Nf3 {[%clk 0:02:50]}  d4 {[%clk 0:02:37]} 13. a5 {[%clk 0:02:34]}  Qc7 {[%clk 0:02:35]} 14. cxd4 {[%clk 0:02:28]}  Bb4+ {[%clk 0:02:32]} 15. Kf1 {[%clk 0:02:28]}  Bxa5 {[%clk 0:02:12]} 16. h4 {[%clk 0:02:28]}  Ne7 {[%clk 0:02:12]} 17. h5 {[%clk 0:02:23]}  h6 {[%clk 0:02:12]} 18. Rh4 {[%clk 0:02:14]}  Bb6 {[%clk 0:02:08]} 19. Rg4 {[%clk 0:02:11]}  Nf5 {[%clk 0:02:08]} 20. Bxf5 {[%clk 0:01:50]}  exf5 {[%clk 0:02:08]} 21. Rxg7 {[%clk 0:01:51]}  Bb5 {[%clk 0:01:53]} 22. Qxb5+ {[%clk 0:01:50]}  axb5 {[%clk 0:01:54]} 23. Rxa8+ {[%clk 0:01:50]}  Ke7 {[%clk 0:01:54]} 24. Ra1 {[%clk 0:01:20]}  Ra8 {[%clk 0:01:00]} 25. Rxa8 {[%clk 0:01:20]}  Qxc1+ {[%clk 0:01:00]} 26. Ke2 {[%clk 0:00:48]}  Qxb2+ {[%clk 0:00:54]} 27. Ke3 {[%clk 0:00:35]}  Qc1+ {[%clk 0:00:53]} 28. Ke2 {[%clk 0:00:35]}  Qc2+ {[%clk 0:00:51]} 29. Ke3 {[%clk 0:00:30]}  Qe4+ {[%clk 0:00:29]} 30. Kd2 {[%clk 0:00:30]}  Bxd4 {[%clk 0:00:28]} 31. Rgg8 {[%clk 0:00:22]}  Bxf2 {[%clk 0:00:20]} 32. Rad8 {[%clk 0:00:19]}  Be3+ {[%clk 0:00:14]} 33. Kd1 {[%clk 0:00:17]}  Qc6 {[%clk 0:00:10]} 34. Rd6 {[%clk 0:00:05]}  Qc4 {[%clk 0:00:03]} 35. Rdd8 {[%clk 0:00:04]}  Qc6 {[%clk 0:00:02]} 36. Rd6 {[%clk 0:00:04]}  Qc4 {[%clk 0:00:02]} 37. Rdd8 {[%clk 0:00:05]}  Qc6 {[%clk 0:00:02]} 1/2-1/2


[Site "https://www.chess.com"]

[Event "Titled Tuesday Blitz June 21 Late 2022"]
[White "Gubajdullin, Alexei"]
[Black "Yuan, Qingyu"]
[WhiteFideId "4141202"]
[BlackFideId "8609772"]
[WhiteElo "2280"]
[BlackElo "2359"]
[Result "1-0"]
[Round "10"]
[TimeControl "180+1"]
[Date "2022.06.21"]
[WhiteClock "0:00:56"]
[BlackClock "0:00:02"]

1. c4 {[%clk 0:03:00]}  e6 {[%clk 0:03:00]} 2. Nf3 {[%clk 0:02:58]}  d5 {[%clk 0:03:00]} 3. b3 {[%clk 0:02:57]}  d4 {[%clk 0:02:59]} 4. g3 {[%clk 0:02:57]}  Nc6 {[%clk 0:02:59]} 5. Bg2 {[%clk 0:02:57]}  e5 {[%clk 0:03:00]} 6. O-O {[%clk 0:02:57]}  e4 {[%clk 0:02:58]} 7. Ne1 {[%clk 0:02:56]}  h5 {[%clk 0:02:58]} 8. Bxe4 {[%clk 0:02:54]}  h4 {[%clk 0:02:55]} 9. d3 {[%clk 0:02:51]}  Nf6 {[%clk 0:02:44]} 10. Bg2 {[%clk 0:02:50]}  hxg3 {[%clk 0:02:41]} 11. hxg3 {[%clk 0:02:40]}  Bg4 {[%clk 0:02:31]} 12. b4 {[%clk 0:02:26]}  Bxb4 {[%clk 0:02:13]} 13. Qa4 {[%clk 0:02:25]}  Qd7 {[%clk 0:01:21]} 14. Nc2 {[%clk 0:02:08]}  Be7 {[%clk 0:01:11]} 15. Re1 {[%clk 0:02:07]}  Bh3 {[%clk 0:01:07]} 16. Bh1 {[%clk 0:02:05]}  Ng4 {[%clk 0:00:50]} 17. e3 {[%clk 0:02:03]}  Kf8 {[%clk 0:00:33]} 18. Nxd4 {[%clk 0:01:53]}  Bf6 {[%clk 0:00:32]} 19. Ba3+ {[%clk 0:01:41]}  Kg8 {[%clk 0:00:31]} 20. Nxc6 {[%clk 0:01:40]}  Bxa1 {[%clk 0:00:27]} 21. Ne7+ {[%clk 0:01:38]}  Qxe7 {[%clk 0:00:25]} 22. Bxe7 {[%clk 0:01:37]}  Be5 {[%clk 0:00:23]} 23. Bxb7 {[%clk 0:01:34]}  Rb8 {[%clk 0:00:23]} 24. Bd5 {[%clk 0:01:33]}  Nf6 {[%clk 0:00:18]} 25. Bxf6 {[%clk 0:01:30]}  gxf6 {[%clk 0:00:16]} 26. Nd2 {[%clk 0:01:28]}  Bc3 {[%clk 0:00:16]} 27. Qc2 {[%clk 0:01:27]}  Ba5 {[%clk 0:00:15]} 28. Rb1 {[%clk 0:01:18]}  Rd8 {[%clk 0:00:14]} 29. Ne4 {[%clk 0:01:17]}  Kg7 {[%clk 0:00:14]} 30. Rb5 {[%clk 0:01:12]}  Bg4 {[%clk 0:00:12]} 31. Qb2 {[%clk 0:01:08]}  Rh6 {[%clk 0:00:03]} 32. Nxf6 {[%clk 0:01:04]}  Rxf6 {[%clk 0:00:02]} 33. Rxa5 {[%clk 0:01:04]}  Rxd5 {[%clk 0:00:02]} 34. Rxd5 {[%clk 0:01:01]}  Kg6 {[%clk 0:00:03]} 35. f4 {[%clk 0:00:57]}  Rb6 {[%clk 0:00:02]} 36. Rg5+ {[%clk 0:00:56]} 1-0


[Site "https://www.chess.com"]

[Event "Titled Tuesday Blitz June 21 Late 2022"]
[White "Harvey, Marcus R"]
[Black "Mei, Austin"]
[WhiteFideId "400092"]
[BlackFideId "30948479"]
[WhiteElo "2485"]
[BlackElo "1936"]
[Result "1-0"]
[Round "10"]
[TimeControl "180+1"]
[Date "2022.06.22"]
[WhiteClock "0:00:16"]
[BlackClock "0:00:11"]

1. e4 {[%clk 0:03:00]}  e5 {[%clk 0:03:00]} 2. Nf3 {[%clk 0:03:00]}  Nc6 {[%clk 0:03:00]} 3. Bb5 {[%clk 0:02:57]}  a6 {[%clk 0:03:00]} 4. Bxc6 {[%clk 0:02:57]}  dxc6 {[%clk 0:03:00]} 5. O-O {[%clk 0:02:52]}  f6 {[%clk 0:03:00]} 6. d3 {[%clk 0:02:46]}  Be6 {[%clk 0:03:00]} 7. Nbd2 {[%clk 0:02:47]}  Bd6 {[%clk 0:02:58]} 8. Nb3 {[%clk 0:02:46]}  Ne7 {[%clk 0:02:56]} 9. Na5 {[%clk 0:02:46]}  Qc8 {[%clk 0:02:55]} 10. Bd2 {[%clk 0:02:44]}  O-O {[%clk 0:02:54]} 11. b4 {[%clk 0:02:42]}  c5 {[%clk 0:02:53]} 12. a3 {[%clk 0:02:38]}  b6 {[%clk 0:02:54]} 13. Nb3 {[%clk 0:02:36]}  c4 {[%clk 0:02:51]} 14. Nc1 {[%clk 0:02:34]}  cxd3 {[%clk 0:02:51]} 15. cxd3 {[%clk 0:02:32]}  Rd8 {[%clk 0:02:51]} 16. Qc2 {[%clk 0:02:30]}  Qb7 {[%clk 0:02:49]} 17. Ne2 {[%clk 0:02:24]}  c5 {[%clk 0:02:47]} 18. Rfb1 {[%clk 0:02:18]}  Qd7 {[%clk 0:02:34]} 19. Ne1 {[%clk 0:02:16]}  Rac8 {[%clk 0:02:33]} 20. Qd1 {[%clk 0:02:15]}  c4 {[%clk 0:02:33]} 21. Be3 {[%clk 0:02:13]}  b5 {[%clk 0:02:22]} 22. d4 {[%clk 0:02:12]}  exd4 {[%clk 0:02:21]} 23. Nxd4 {[%clk 0:02:13]}  Bf7 {[%clk 0:02:20]} 24. Nec2 {[%clk 0:02:08]}  Nc6 {[%clk 0:02:18]} 25. Qe2 {[%clk 0:01:43]}  Nxd4 {[%clk 0:02:16]} 26. Bxd4 {[%clk 0:01:40]}  Qe6 {[%clk 0:02:12]} 27. Rd1 {[%clk 0:01:36]}  Re8 {[%clk 0:02:11]} 28. f3 {[%clk 0:01:33]}  Rcd8 {[%clk 0:02:10]} 29. Re1 {[%clk 0:01:14]}  Bc7 {[%clk 0:02:09]} 30. Qe3 {[%clk 0:01:12]}  f5 {[%clk 0:02:04]} 31. e5 {[%clk 0:01:10]}  f4 {[%clk 0:01:39]} 32. Qxf4 {[%clk 0:01:07]}  Bg6 {[%clk 0:01:40]} 33. Ne3 {[%clk 0:01:02]}  Bxe5 {[%clk 0:01:30]} 34. Qxe5 {[%clk 0:01:00]}  Qxe5 {[%clk 0:01:31]} 35. Bxe5 {[%clk 0:01:00]}  Rxe5 {[%clk 0:01:32]} 36. Kf2 {[%clk 0:00:57]}  Rd2+ {[%clk 0:01:31]} 37. Re2 {[%clk 0:00:57]}  Rxe2+ {[%clk 0:01:23]} 38. Kxe2 {[%clk 0:00:58]}  Bd3+ {[%clk 0:01:24]} 39. Kd2 {[%clk 0:00:55]}  g5 {[%clk 0:01:23]} 40. Re1 {[%clk 0:00:53]}  Kf7 {[%clk 0:01:19]} 41. Nd1 {[%clk 0:00:53]}  Rxe1 {[%clk 0:01:08]} 42. Kxe1 {[%clk 0:00:54]}  h5 {[%clk 0:01:08]} 43. Kf2 {[%clk 0:00:50]}  Ke6 {[%clk 0:01:06]} 44. Ke3 {[%clk 0:00:51]}  Ke5 {[%clk 0:01:05]} 45. g3 {[%clk 0:00:50]}  h4 {[%clk 0:01:00]} 46. Nc3 {[%clk 0:00:48]}  Bg6 {[%clk 0:00:50]} 47. a4 {[%clk 0:00:46]}  bxa4 {[%clk 0:00:41]} 48. Nxa4 {[%clk 0:00:47]}  Be8 {[%clk 0:00:36]} 49. Nc5 {[%clk 0:00:47]}  Bb5 {[%clk 0:00:35]} 50. Ne4 {[%clk 0:00:47]}  hxg3 {[%clk 0:00:31]} 51. hxg3 {[%clk 0:00:46]}  Kf5 {[%clk 0:00:30]} 52. g4+ {[%clk 0:00:38]}  Kg6 {[%clk 0:00:30]} 53. Kd4 {[%clk 0:00:38]}  Kh6 {[%clk 0:00:19]} 54. Kc5 {[%clk 0:00:38]}  Kg6 {[%clk 0:00:19]} 55. Kd4 {[%clk 0:00:30]}  Kh6 {[%clk 0:00:19]} 56. Nd6 {[%clk 0:00:29]}  Bc6 {[%clk 0:00:17]} 57. Nxc4 {[%clk 0:00:26]}  Bxf3 {[%clk 0:00:17]} 58. Ne5 {[%clk 0:00:26]}  Be2 {[%clk 0:00:17]} 59. Ke4 {[%clk 0:00:25]}  Bd1 {[%clk 0:00:13]} 60. Kf5 {[%clk 0:00:25]}  Bc2+ {[%clk 0:00:14]} 61. Kf6 {[%clk 0:00:26]}  Bd1 {[%clk 0:00:14]} 62. Nf7+ {[%clk 0:00:26]}  Kh7 {[%clk 0:00:14]} 63. Nxg5+ {[%clk 0:00:26]}  Kh6 {[%clk 0:00:15]} 64. Nf7+ {[%clk 0:00:26]}  Kh7 {[%clk 0:00:15]} 65. g5 {[%clk 0:00:26]}  Bc2 {[%clk 0:00:16]} 66. Ne5 {[%clk 0:00:26]}  Kg8 {[%clk 0:00:16]} 67. g6 {[%clk 0:00:24]}  Bb1 {[%clk 0:00:17]} 68. g7 {[%clk 0:00:23]}  Ba2 {[%clk 0:00:17]} 69. Nc6 {[%clk 0:00:23]}  Kh7 {[%clk 0:00:15]} 70. Ne7 {[%clk 0:00:23]}  Bb3 {[%clk 0:00:15]} 71. g8=Q+ {[%clk 0:00:16]}  Bxg8 {[%clk 0:00:15]} 72. Nxg8 {[%clk 0:00:17]}  Kxg8 {[%clk 0:00:15]} 73. Ke7 {[%clk 0:00:17]}  Kg7 {[%clk 0:00:15]} 74. Kd7 {[%clk 0:00:17]}  Kf7 {[%clk 0:00:16]} 75. Kc7 {[%clk 0:00:18]}  Ke7 {[%clk 0:00:16]} 76. Kb7 {[%clk 0:00:16]}  Kd8 {[%clk 0:00:10]} 77. Kxa6 {[%clk 0:00:16]}  Kc8 {[%clk 0:00:11]} 78. Ka7 {[%clk 0:00:16]} 1-0


[Site "https://www.chess.com"]

[Event "Titled Tuesday Blitz June 21 Late 2022"]
[White "Jiganchine, Roman"]
[Black "Fiol, Fabrice"]
[WhiteFideId "2603667"]
[BlackFideId "611670"]
[WhiteElo "2259"]
[BlackElo "2442"]
[Result "0-1"]
[Round "10"]
[TimeControl "180+1"]
[Date "2022.06.22"]
[WhiteClock "0:00:00"]
[BlackClock "0:00:07"]

1. Nf3 {[%clk 0:03:00]}  d5 {[%clk 0:02:59]} 2. c4 {[%clk 0:03:00]}  e6 {[%clk 0:03:00]} 3. b3 {[%clk 0:02:59]}  Nf6 {[%clk 0:03:00]} 4. Bb2 {[%clk 0:02:59]}  c5 {[%clk 0:03:00]} 5. e3 {[%clk 0:02:55]}  Nc6 {[%clk 0:03:01]} 6. cxd5 {[%clk 0:02:55]}  exd5 {[%clk 0:03:01]} 7. Bb5 {[%clk 0:02:55]}  Be7 {[%clk 0:02:57]} 8. O-O {[%clk 0:02:54]}  O-O {[%clk 0:02:57]} 9. d4 {[%clk 0:02:52]}  Qb6 {[%clk 0:02:52]} 10. Be2 {[%clk 0:02:48]}  Bg4 {[%clk 0:02:47]} 11. h3 {[%clk 0:02:45]}  Bh5 {[%clk 0:02:47]} 12. dxc5 {[%clk 0:02:33]}  Qxc5 {[%clk 0:02:47]} 13. Ba3 {[%clk 0:02:11]}  Qb6 {[%clk 0:02:44]} 14. Bxe7 {[%clk 0:02:11]}  Nxe7 {[%clk 0:02:44]} 15. Nc3 {[%clk 0:02:09]}  Rad8 {[%clk 0:02:42]} 16. Qd4 {[%clk 0:02:07]}  Qxd4 {[%clk 0:02:01]} 17. Nxd4 {[%clk 0:02:08]}  Bxe2 {[%clk 0:02:00]} 18. Ncxe2 {[%clk 0:02:05]}  Ne4 {[%clk 0:01:58]} 19. Rfd1 {[%clk 0:02:03]}  Nc6 {[%clk 0:01:55]} 20. Rac1 {[%clk 0:02:00]}  Ne5 {[%clk 0:01:49]} 21. Rc7 {[%clk 0:01:47]}  Rb8 {[%clk 0:01:37]} 22. Nf5 {[%clk 0:01:40]}  Rfd8 {[%clk 0:01:22]} 23. Ne7+ {[%clk 0:01:21]}  Kf8 {[%clk 0:01:22]} 24. Rxd5 {[%clk 0:01:08]}  Rxd5 {[%clk 0:01:20]} 25. Nxd5 {[%clk 0:01:07]}  Rd8 {[%clk 0:01:19]} 26. Nec3 {[%clk 0:01:01]}  Nd6 {[%clk 0:01:11]} 27. f4 {[%clk 0:00:47]}  Nd3 {[%clk 0:01:09]} 28. g3 {[%clk 0:00:40]}  a5 {[%clk 0:01:08]} 29. Kg2 {[%clk 0:00:37]}  b5 {[%clk 0:00:53]} 30. Kf3 {[%clk 0:00:17]}  b4 {[%clk 0:00:47]} 31. Na4 {[%clk 0:00:17]}  Nb5 {[%clk 0:00:32]} 32. e4 {[%clk 0:00:09]}  Nxc7 {[%clk 0:00:31]} 33. Nxc7 {[%clk 0:00:08]}  Nc1 {[%clk 0:00:29]} 34. Nd5 {[%clk 0:00:06]}  Nxa2 {[%clk 0:00:27]} 35. Nc5 {[%clk 0:00:05]}  Nc1 {[%clk 0:00:19]} 36. Ke3 {[%clk 0:00:05]}  f5 {[%clk 0:00:19]} 37. Nb7 {[%clk 0:00:02]}  Ra8 {[%clk 0:00:13]} 38. e5 {[%clk 0:00:01]}  Nxb3 {[%clk 0:00:12]} 39. e6 {[%clk 0:00:00]}  Re8 {[%clk 0:00:07]} 0-1


[Site "https://www.chess.com"]

[Event "Titled Tuesday Blitz June 21 Late 2022"]
[White "Keymer, Vincent"]
[Black "Dardha, Daniel"]
[WhiteFideId "12940690"]
[BlackFideId "240990"]
[WhiteElo "2548"]
[BlackElo "2482"]
[Result "0-1"]
[Round "10"]
[TimeControl "180+1"]
[Date "2022.06.21"]
[WhiteClock "0:00:04"]
[BlackClock "0:00:46"]

1. Nf3 {[%clk 0:03:00]}  d5 {[%clk 0:02:58]} 2. e3 {[%clk 0:03:00]}  c6 {[%clk 0:02:55]} 3. c4 {[%clk 0:02:59]}  Nf6 {[%clk 0:02:54]} 4. Nc3 {[%clk 0:03:00]}  e6 {[%clk 0:02:54]} 5. b3 {[%clk 0:02:59]}  Bd6 {[%clk 0:02:53]} 6. Bb2 {[%clk 0:03:00]}  O-O {[%clk 0:02:51]} 7. Be2 {[%clk 0:03:00]}  e5 {[%clk 0:02:50]} 8. cxd5 {[%clk 0:03:00]}  cxd5 {[%clk 0:02:49]} 9. Nb5 {[%clk 0:03:00]}  e4 {[%clk 0:02:48]} 10. Nfd4 {[%clk 0:03:00]}  Be5 {[%clk 0:02:41]} 11. Ne6 {[%clk 0:02:59]}  fxe6 {[%clk 0:02:39]} 12. Bxe5 {[%clk 0:02:59]}  Nc6 {[%clk 0:02:38]} 13. Bc7 {[%clk 0:02:59]}  Qd7 {[%clk 0:02:34]} 14. Bg3 {[%clk 0:02:58]}  e5 {[%clk 0:02:31]} 15. O-O {[%clk 0:02:57]}  a6 {[%clk 0:02:27]} 16. Na3 {[%clk 0:02:20]}  Qe7 {[%clk 0:02:25]} 17. Nc2 {[%clk 0:02:16]}  Bf5 {[%clk 0:02:11]} 18. d4 {[%clk 0:02:07]}  exd3 {[%clk 0:02:06]} 19. Bxd3 {[%clk 0:02:06]}  Bxd3 {[%clk 0:02:03]} 20. Qxd3 {[%clk 0:02:07]}  Rad8 {[%clk 0:02:03]} 21. Bh4 {[%clk 0:01:51]}  Qe6 {[%clk 0:01:58]} 22. Rad1 {[%clk 0:01:49]}  Rd7 {[%clk 0:01:52]} 23. Qe2 {[%clk 0:01:38]}  Ne4 {[%clk 0:01:48]} 24. Qe1 {[%clk 0:01:32]}  g5 {[%clk 0:01:35]} 25. Bg3 {[%clk 0:01:11]}  Rdf7 {[%clk 0:01:32]} 26. f3 {[%clk 0:01:08]}  g4 {[%clk 0:01:28]} 27. f4 {[%clk 0:00:56]}  h5 {[%clk 0:01:22]} 28. Nb4 {[%clk 0:00:54]}  Nxb4 {[%clk 0:01:19]} 29. Qxb4 {[%clk 0:00:54]}  b6 {[%clk 0:01:18]} 30. Qe1 {[%clk 0:00:47]}  b5 {[%clk 0:01:10]} 31. Rc1 {[%clk 0:00:45]}  d4 {[%clk 0:01:05]} 32. exd4 {[%clk 0:00:40]}  exf4 {[%clk 0:01:03]} 33. Bh4 {[%clk 0:00:38]}  f3 {[%clk 0:01:02]} 34. Qe3 {[%clk 0:00:21]}  f2+ {[%clk 0:00:59]} 35. Bxf2 {[%clk 0:00:13]}  Rxf2 {[%clk 0:00:57]} 36. Rxf2 {[%clk 0:00:13]}  Rxf2 {[%clk 0:00:56]} 37. Re1 {[%clk 0:00:14]}  Qf5 {[%clk 0:00:56]} 38. d5 {[%clk 0:00:08]}  Rf4 {[%clk 0:00:52]} 39. Qa7 {[%clk 0:00:05]}  Qxd5 {[%clk 0:00:49]} 40. Qe7 {[%clk 0:00:03]}  Qd4+ {[%clk 0:00:45]} 41. Kh1 {[%clk 0:00:04]}  Nf2+ {[%clk 0:00:45]} 42. Kg1 {[%clk 0:00:04]}  Nh3+ {[%clk 0:00:46]} 0-1


[Site "https://www.chess.com"]

[Event "Titled Tuesday Blitz June 21 Late 2022"]
[White "Koziorowicz, Michal"]
[Black "Mortazavi, Ali"]
[WhiteFideId "21809194"]
[BlackFideId "401323"]
[WhiteElo "2202"]
[BlackElo "2339"]
[Result "1-0"]
[Round "10"]
[TimeControl "180+1"]
[Date "2022.06.21"]
[WhiteClock "0:00:26"]
[BlackClock "0:00:08"]

1. e4 {[%clk 0:03:00]}  c6 {[%clk 0:02:08]} 2. d4 {[%clk 0:03:00]}  d5 {[%clk 0:02:09]} 3. c4 {[%clk 0:03:00]}  dxe4 {[%clk 0:01:48]} 4. Nc3 {[%clk 0:03:00]}  Nf6 {[%clk 0:01:48]} 5. Nge2 {[%clk 0:02:59]}  e5 {[%clk 0:01:31]} 6. dxe5 {[%clk 0:02:58]}  Qxd1+ {[%clk 0:01:31]} 7. Nxd1 {[%clk 0:02:59]}  Nfd7 {[%clk 0:01:31]} 8. Bf4 {[%clk 0:02:56]}  Nc5 {[%clk 0:01:20]} 9. Ng3 {[%clk 0:02:51]}  Nba6 {[%clk 0:01:10]} 10. Nc3 {[%clk 0:02:49]}  Nb4 {[%clk 0:01:08]} 11. Kd2 {[%clk 0:02:31]}  Be6 {[%clk 0:01:01]} 12. Ncxe4 {[%clk 0:02:23]}  O-O-O+ {[%clk 0:00:47]} 13. Kc3 {[%clk 0:02:16]}  Nbd3 {[%clk 0:00:39]} 14. Be3 {[%clk 0:02:10]}  Na4+ {[%clk 0:00:11]} 15. Kc2 {[%clk 0:02:09]}  Ndxb2 {[%clk 0:00:09]} 16. Nd2 {[%clk 0:02:04]}  h5 {[%clk 0:00:08]} 17. Rb1 {[%clk 0:01:59]}  h4 {[%clk 0:00:08]} 18. Nge4 {[%clk 0:01:59]}  Ba3 {[%clk 0:00:07]} 19. Bxa7 {[%clk 0:01:52]}  Bf5 {[%clk 0:00:08]} 20. f3 {[%clk 0:01:52]}  h3 {[%clk 0:00:08]} 21. g4 {[%clk 0:01:49]}  Bg6 {[%clk 0:00:08]} 22. Kb3 {[%clk 0:01:41]}  Rxd2 {[%clk 0:00:08]} 23. Nxd2 {[%clk 0:01:39]}  Bxb1 {[%clk 0:00:09]} 24. Nxb1 {[%clk 0:01:37]}  Be7 {[%clk 0:00:10]} 25. Bd4 {[%clk 0:01:34]}  Nd1 {[%clk 0:00:09]} 26. Kxa4 {[%clk 0:01:33]}  Rd8 {[%clk 0:00:09]} 27. Bc3 {[%clk 0:01:27]}  Nf2 {[%clk 0:00:09]} 28. Rg1 {[%clk 0:01:27]}  Rd1 {[%clk 0:00:09]} 29. Nd2 {[%clk 0:01:26]}  Bc5 {[%clk 0:00:10]} 30. Nb3 {[%clk 0:01:23]}  Be3 {[%clk 0:00:09]} 31. g5 {[%clk 0:01:08]}  Nd3 {[%clk 0:00:09]} 32. Bxd3 {[%clk 0:01:06]}  Bxg1 {[%clk 0:00:09]} 33. Bf5+ {[%clk 0:01:07]}  Kc7 {[%clk 0:00:10]} 34. Bxh3 {[%clk 0:01:05]}  Bxh2 {[%clk 0:00:10]} 35. g6 {[%clk 0:01:05]}  fxg6 {[%clk 0:00:09]} 36. e6 {[%clk 0:01:03]}  Rd6 {[%clk 0:00:08]} 37. Bxg7 {[%clk 0:01:02]}  Kd8 {[%clk 0:00:07]} 38. Bf6+ {[%clk 0:00:57]}  Ke8 {[%clk 0:00:08]} 39. Nc5 {[%clk 0:00:57]}  Rd2 {[%clk 0:00:06]} 40. Kb3 {[%clk 0:00:55]}  b6 {[%clk 0:00:06]} 41. Ne4 {[%clk 0:00:53]}  Rd3+ {[%clk 0:00:07]} 42. Bc3 {[%clk 0:00:52]}  Be5 {[%clk 0:00:07]} 43. Kc2 {[%clk 0:00:50]}  Rxf3 {[%clk 0:00:07]} 44. Bg2 {[%clk 0:00:47]}  Rf5 {[%clk 0:00:06]} 45. Bd2 {[%clk 0:00:35]}  Ke7 {[%clk 0:00:06]} 46. Kd3 {[%clk 0:00:34]}  Kxe6 {[%clk 0:00:07]} 47. Bh3 {[%clk 0:00:34]}  b5 {[%clk 0:00:07]} 48. c5 {[%clk 0:00:34]}  Kd5 {[%clk 0:00:07]} 49. Bxf5 {[%clk 0:00:34]}  gxf5 {[%clk 0:00:08]} 50. Ng5 {[%clk 0:00:33]}  Kxc5 {[%clk 0:00:09]} 51. Nf3 {[%clk 0:00:32]}  Bf6 {[%clk 0:00:09]} 52. Ne1 {[%clk 0:00:30]}  Kd5 {[%clk 0:00:09]} 53. Nc2 {[%clk 0:00:30]}  c5 {[%clk 0:00:07]} 54. Ne3+ {[%clk 0:00:30]}  Ke6 {[%clk 0:00:07]} 55. Ba5 {[%clk 0:00:30]}  f4 {[%clk 0:00:07]} 56. Ng4 {[%clk 0:00:29]}  Kf5 {[%clk 0:00:08]} 57. Nf2 {[%clk 0:00:29]}  Bh4 {[%clk 0:00:07]} 58. Nd1 {[%clk 0:00:28]}  Kg4 {[%clk 0:00:07]} 59. Bb6 {[%clk 0:00:28]}  c4+ {[%clk 0:00:07]} 60. Ke4 {[%clk 0:00:27]}  Bf6 {[%clk 0:00:06]} 61. Bc7 {[%clk 0:00:26]}  f3 {[%clk 0:00:05]} 62. Ne3+ {[%clk 0:00:26]}  Kh3 {[%clk 0:00:05]} 63. Kxf3 {[%clk 0:00:25]}  c3 {[%clk 0:00:06]} 64. Ke4 {[%clk 0:00:25]}  Bg5 {[%clk 0:00:06]} 65. Nc2 {[%clk 0:00:24]}  Kg2 {[%clk 0:00:06]} 66. Kd3 {[%clk 0:00:24]}  Bf6 {[%clk 0:00:07]} 67. Ba5 {[%clk 0:00:25]}  Kf3 {[%clk 0:00:07]} 68. Bxc3 {[%clk 0:00:25]}  Be7 {[%clk 0:00:08]} 69. Nd4+ {[%clk 0:00:25]}  Kf4 {[%clk 0:00:08]} 70. Nxb5 {[%clk 0:00:26]} 1-0


[Site "https://www.chess.com"]